Cogmind - Beta 13 @@@ ROGUE MODE // 2024.03.08 @ 02:48:47 Player: Treadwheel Result: Destroyed by G-50 Soldier with Heavy Laser Performance ------------- Evolutions (4) 2000 Regions Visited (4) 800 Robots Destroyed (36) 180 Value Destroyed (1296) 1296 Prototype IDs (19) 380 Alien Tech Used (0) 0 Bonus (337) 337 TOTAL SCORE: 4993 Bonus ------- Follower Combat Kills 337 Cogmind --------- Core Integrity 0/850 Matter 227/300 Energy 111/290 System Corruption 19% Temperature Cool (9) Movement Core (250) Ox4 Location -6/Factory Parts ------- > --- POWER (1) -------- Improved Deuterium Engine > --- PROPULSION (5) --- (None) > --- UTILITY (7) ------ Signal Interpreter Advanced Melee Analysis Suite System Shield > --- WEAPON (2) ------- Shock Maul > --- INVENTORY (5) ---- Improved Sensor Array Advanced Terrain Scan Processor Makeshift Shrapnel Gun Datajack Shock Maul Peak State ------------ > --- POWER ------------ Light Angular Momentum Engine > --- PROPULSION ------- Armored Treads Medium Treads Medium Treads Cargo Legs > --- UTILITY ---------- Scrap Engine Large Storage Unit Triangulator Signal Interpreter Recoil Stabilizer System Shield > --- WEAPON ----------- Makeshift Shrapnel Gun Shock Maul > --- INVENTORY -------- Light Treads Light Treads Light Treads Xenon Bombardment Thruster Biomechanical Wings Improved Sensor Array Advanced Terrain Scan Processor Particle Charger Scrap Shield Improved Lightning Gun Grenade Launcher Datajack Multitool Makeshift Axe [Rating: 75] Favorites ----------- Power Light Nuclear Core Engine Light Ion Engine Power Core Light Nuclear Core Propulsion Cargo Legs Treads Light Treads Leg Cargo Legs Wheel Compact Wheel Flight Unit Biomechanical Wings Utility Large Storage Unit Device V3-11A's Pendant Storage Large Storage Unit Processor Signal Interpreter Hackware System Shield Protection Scrap Shield Weapon Barrage Gun Energy Gun Particle Gun Energy Cannon Subdweller Beam Cannon Ballistic Gun Barrage Gun Ballistic Cannon Light Cannon Launcher Grenade Launcher Special Weapon Multitool Impact Weapon Shock Maul Slashing Weapon Makeshift Axe Build | -11 -10 -10 -8 -6 ------- Run | Yrd Mat Sub Rec Fac Slots Evolved 8 | . . . . 8 Power . | . . . . . Propulsion 3 | . . . . 3 Utility 5 | . . . . 5 Weapon . | . . . . . Parts Attached 87 | 3 15 17 4 48 Power 7 | . 3 . . 4 Engine 4 | . 1 . . 3 Core 3 | . 2 . . 1 Reactor . | . . . . . Propulsion 26 | 2 1 2 . 21 Treads 15 | 1 1 . . 13 Leg 7 | . . 1 . 6 Wheel 2 | 1 . 1 . . Hover . | . . . . . Flight 2 | . . . . 2 Utility 20 | 1 6 2 1 10 Device 10 | 1 2 1 1 5 Storage 2 | . 2 . . . Processor 2 | . . . . 2 Hackware 1 | . . . . 1 Protection 5 | . 2 1 . 2 Artifact . | . . . . . Weapon 34 | . 5 13 3 13 Energy Gun 5 | . 3 . . 2 Energy Cannon 5 | . . 3 1 1 Ballistic Gun 9 | . 1 5 . 3 Ballistic Cannon 1 | . 1 . . . Launcher 1 | . . . . 1 Special Weapon 2 | . . 2 . . Impact Weapon 2 | . . . . 2 Slashing Weapon 9 | . . 3 2 4 Piercing Weapon . | . . . . . Special Melee Weapon . | . . . . . Unidentified Prototypes 4 | . . 1 . 3 Parts Lost 31 | . 2 . . 29 Power 5 | . 1 . . 4 Propulsion 13 | . . . . 13 Utility 6 | . . . . 6 Weapon 7 | . 1 . . 6 Highest Loss Streak 20 | . 1 . . 20 To Critical Strikes . | . . . . . Average Slot Usage (%) 83 | . 98 81 77 77 Engine 1 | . 5 . . 2 Core 9 | . 8 11 11 2 Treads 4 | . 14 2 . 4 Leg 8 | . . 8 11 15 Wheel 4 | . 14 2 . . Device 10 | . 3 11 11 15 Storage 10 | . 14 11 11 5 Protection 8 | . 10 9 11 3 Energy Gun 3 | . 13 1 . . Energy Cannon 3 | . . 7 . . Ballistic Gun 7 | . 12 10 . . Slashing Weapon 6 | . . 2 20 8 Naked Turns . | . . . . . Heaviest Build 91 | 12 91 55 55 58 Greatest Support 100 | 20 16 55 55 100 Greatest Overweight (x) 5 | . 5 2 . 4 Average Overweight (x) . | . 4 . . . Largest Inventory Capacity 25 | 8 25 15 15 15 Average Capacity 16 | 8 23 15 15 14 Most Carried 25 | 6 25 15 15 15 Average Carried 15 | 6 18 14 14 13 Final Capacity 15 | 8 15 15 15 5 Final Carried 15 | 6 15 15 15 5 Scrap Engine Consumption 32 | . . . . 32 Constructs Created 9 | . . . . 9 Class Distribution -------------------- 92% | Mutant 4% | Scavenger-Assassin Dominant Class ---------------- Mutant | -10/Materials Mutant | -10/Subcaves Mutant | -8/Recycling Mutant | -6/Factory Resources | -11 -10 -10 -8 -6 ----------- Run | Yrd Mat Sub Rec Fac Matter Collected 1156 | 242 202 313 40 359 Remotely . | . . . . . Salvage Created 1960 | 88 411 . 152 1309 Parts 78 | 3 24 . 3 48 Haulers Intercepted 5 | . 2 . . 3 Recyclers Shooed 1 | . . . . 1 Parts Field Recycled . | . . . . . Retrieved Matter . | . . . . . Parts Self-Destructed 17 | . . 17 . . Prevented . | . . . . . Kills | -11 -10 -10 -8 -6 ------- Run | Yrd Mat Sub Rec Fac Combat Hostiles Destroyed 25 | . 6 . . 19 Melee 13 | . . . . 13 Guns 7 | . 6 . . 1 AOE 2 | . . . . 2 Classes Destroyed 10 | 2 3 . . 5 Tunneler 1 | 1 . . . . Hauler 5 | . 2 . . 3 Recycler 2 | 1 . . . 1 Watcher 3 | . 2 . . 1 Swarmer 3 | . . . . 3 Saboteur 1 | . . . . 1 Grunt 16 | . 6 . . 10 Specialist 1 | . . . . 1 Hunter 1 | . . . . 1 Programmer 3 | . . . . 3 Best Kill Streak 3 | 2 2 . . 3 Combat Bots Only 3 | . 2 . . 3 Max Kills in Single Turn 2 | 1 1 . . 2 Gunslinging . | . . . . . Exploded 2 | . . . . 2 Melee 1 | . . . . 1 Uniques/NPCs Destroyed . | . . . . . Combat | -11 -10 -10 -8 -6 -------- Run | Yrd Mat Sub Rec Fac Hostile Shots Fired 482 | . 26 21 . 435 Missed 141 | . 4 9 . 128 Damage Taken 5586 | . 333 461 . 4792 Core 896 | . 26 10 . 860 Absorbed by Shields . | . . . . . Core Remaining (%) 92 | 100 . . 85 . Volleys Fired 77 | 4 28 32 . 13 Largest 2 | 2 2 2 . 2 Hottest 108 | 60 85 108 . 108 Shots Fired 141 | 8 52 60 . 21 Gun 112 | 8 52 33 . 19 Cannon 27 | . . 27 . . Launcher 2 | . . . . 2 Special . | . . . . . Kinetic 73 | 4 24 33 . 12 Thermal 66 | 4 28 27 . 7 Explosive 2 | . . . . 2 Electromagnetic . | . . . . . Robot Hit Streak 12 | 3 12 . . 10 Robot Miss Streak 7 | 1 3 . . 7 Penetration Max . | . . . . . Secondary Targets . | . . . . . Shots Hit Robots 129 | 6 36 2 7 78 Core Hits 56 | 3 16 . 2 35 Critical Kills . | . . . . . Critical Parts Destroyed 3 | . . . . 3 Critical Strikes 13 | . . . . 13 Smash 3 | . . . . 3 Sever 10 | . . . . 10 Melee Attacks 125 | . . 19 15 91 Thermal 6 | . . . . 6 Impact 6 | . . . . 6 Slashing 113 | . . 19 15 79 Piercing . | . . . . . Sneak Attacks 6 | . . . 1 5 Combat Hostiles . | . . . . . Follow-up Attacks 19 | . . . 1 18 Damage Inflicted 4429 | 73 507 100 500 3249 Guns 867 | 73 507 . . 287 Cannons . | . . . . . Explosions 342 | . . . . 342 Melee 3220 | . . 100 500 2620 Ramming . | . . . . . Kinetic 402 | 40 226 . . 136 Thermal 465 | 33 281 . . 151 Explosive 342 | . . . . 342 Electromagnetic . | . . . . . Impact 279 | . . . . 279 Slashing 2941 | . . 100 500 2341 Piercing . | . . . . . Highest Corruption 19 | . . . . 19 Average Corruption 3 | . . . . 3 Corruption Purged . | . . . . . Corruption Blocked . | . . . . . Effects 10 | . . . . 10 Message Errors 3 | . . . . 3 Parts Rejected 1 | . . . . 1 Data Loss (minor) 3 | . . . . 3 Misfires 1 | . . . . 1 Alerts 1 | . . . . 1 Weapon Failures 1 | . . . . 1 Overload Shots . | . . . . . Overflow Damage 443 | . . 10 126 307 Projectiles . | . . . . . Explosions . | . . . . . Melee 443 | . . 10 126 307 Knockbacks . | . . . . . Impact . | . . . . . Kinetic . | . . . . . Secondary . | . . . . . Self-Inflicted Damage . | . . . . . Shots . | . . . . . Rammed . | . . . . . Targets Rammed . | . . . . . Kicked . | . . . . . Crushed . | . . . . . Highest Temperature 189 | . 189 64 . 108 Average Temperature 48 | . 60 25 . 40 Received Heat Transfer 1281 | . 192 27 . 1062 Siege Activations . | . . . . . Robots Corrupted . | . . . . . Combat Hostiles . | . . . . . Parts Fried 2 | . . . . 2 Impact Corruptions 4 | . . . . 4 Robots Melted . | . . . . . Combat Hostiles . | . . . . . Parts Melted 1 | . . . . 1 Heat Transferred 1053 | 75 703 . . 275 Parts Sabotaged 4 | . . . . 4 Parts Stolen . | . . . . . Parts Stripped . | . . . . . Power Chain Reactions . | . . . . . Alert | -11 -10 -10 -8 -6 ------- Run | Yrd Mat Sub Rec Fac Peak Influence 203 | 10 93 . 120 203 Initial 120 | . 6 . 120 11 Average 47 | 5 38 . 32 75 Maximum Alert Level 1 | . . . . 1 Low Security (%) 99 | 100 100 . 100 99 Level 1 . | . . . . . Level 2 . | . . . . . Level 3 . | . . . . . Level 4 . | . . . . . Level 5 . | . . . . . High Security . | . . . . . Max Security . | . . . . . Squads Dispatched 8 | . . . . 8 Investigation 1 | . . . . 1 Extermination 3 | . . . . 3 Reinforcement 3 | . . . . 3 Assault . | . . . . . Garrison 1 | . . . . 1 Intercept . | . . . . . Searches Triggered . | . . . . . Construction Impeded . | . . . . . Haulers Reinforced 2 | . . . . 2 Active Scanning Responses . | . . . . . Cargo Convoy Interrupts 1 | . . . . 1 Stealth | -11 -10 -10 -8 -6 --------- Run | Yrd Mat Sub Rec Fac Distress Signals 2 | . 1 . . 1 Communications Jammed . | . . . . . Distress Signals . | . . . . . Times Spotted 84 | . 13 31 . 40 Peak Tracking Total 13 | . 3 4 . 13 Tactical Retreats 2 | . 1 1 . . Traps | -11 -10 -10 -8 -6 ------- Run | Yrd Mat Sub Rec Fac Traps Triggered 5 | . 2 3 . . Indirectly . | . . . . . Trap Hack Attempts . | . . . . . Triggered . | . . . . . Disarmed . | . . . . . Reprogrammed . | . . . . . Reused . | . . . . . Traps Extracted . | . . . . . Installed . | . . . . . Triggered . | . . . . . Machines | -11 -10 -10 -8 -6 ---------- Run | Yrd Mat Sub Rec Fac Machines Disabled 7 | . 1 5 1 . Max in Single Turn 1 | . 1 1 1 . Machines Repaired . | . . . . . Machines Dismantled . | . . . . . Machines Sabotaged . | . . . . . Overloaded Fab Kills . | . . . . . Hacking | -11 -10 -10 -8 -6 --------- Run | Yrd Mat Sub Rec Fac Machines Accessed 30 | . 11 2 13 4 Terminals 16 | . 8 . 6 2 Fabricators 1 | . . . . 1 Repair Stations 1 | . 1 . . . Recycling Units 9 | . 2 . 7 . Scanalyzers . | . . . . . Garrison Access 1 | . . . . 1 Total Hacks 99 | . 35 3 49 12 Successful 54 | . 21 3 27 3 Failed 44 | . 13 . 22 9 Catastrophic 7 | . 2 . 3 2 Database Lockouts 1 | . 1 . . . Manual 63 | . 25 . 27 11 Terminals 47 | . 26 . 17 4 Fabricators 6 | . . . . 6 Repair Stations 1 | . 1 . . . Recycling Units 40 | . 8 . 32 . Scanalyzers . | . . . . . Garrison Access 2 | . . . . 2 Terminal Hacks 16 | . 9 3 3 1 Record 2 | . . 2 . . Robot Analysis 4 | . 4 . . . Prototype ID Bank 1 | . 1 . . . Open DSF 1 | . . . . 1 Terminal Index 2 | . 1 . 1 . Alert Level 1 | . . . 1 . Unreport Threat 3 | . 2 . 1 . Zone Layout 1 | . 1 . . . Derelict Proto ID Bank 1 | . . 1 . . Fabricator Hacks . | . . . . . Repair Station Hacks 1 | . 1 . . . Refit 1 | . 1 . . . Recycling Unit Hacks 11 | . 4 . 7 . Report Inventory 1 | . 1 . . . Retrieve Matter 4 | . 1 . 3 . Retrieve Components 6 | . 2 . 4 . Scanalyzer . | . . . . . Garrison Access Hacks . | . . . . . Unauthorized Hacks 26 | . 7 . 17 2 Terminals 7 | . 3 . 3 1 Botnet 5 | . 2 . 2 1 Operators 2 | . 1 . 1 . Fabricators 1 | . . . . 1 Fabnet 1 | . . . . 1 Repair Stations . | . . . . . Recycling Units 18 | . 4 . 14 . Reject 9 | . 2 . 7 . Mask 9 | . 2 . 7 . Scanalyzers . | . . . . . Garrison Access . | . . . . . Data Cores Recovered . | . . . . . Used . | . . . . . Hacking Detections 23 | . 7 . 13 3 Full Trace Events 2 | . 1 . . 1 Feedback Events . | . . . . . Feedback Blocked . | . . . . . Robot Schematics Acquired . | . . . . . Robots Built . | . . . . . Authchips . | . . . . . Time . | . . . . . Total Robot Build Rating . | . . . . . Part Schematics Acquired . | . . . . . Parts Built . | . . . . . Authchips . | . . . . . Time . | . . . . . Total Part Build Rating . | . . . . . Parts Repaired . | . . . . . Time . | . . . . . Parts Recycled . | . . . . . Recycled Matter . | . . . . . Retrieved Matter . | . . . . . Retrieved Components 6 | . 5 . 1 . Parts Scanalyzed . | . . . . . Part Schematics Acquired . | . . . . . Parts Damaged . | . . . . . Bothacking | -11 -10 -10 -8 -6 ------------ Run | Yrd Mat Sub Rec Fac Used RIF Installer . | . . . . . Robots Hacked . | . . . . . Non-combat . | . . . . . Combat . | . . . . . Robot Hacks Applied . | . . . . . Relay Couplers Released . | . . . . . Fabnet Peak Effective % . | . . . . . Robots Rewired . | . . . . . Allies Hacked . | . . . . . Hacks Repelled . | . . . . . Allies | -11 -10 -10 -8 -6 -------- Run | Yrd Mat Sub Rec Fac Total Allies 17 | . . 17 . . Largest Group 10 | . . 10 10 8 Highest-Rated Group 189 | . . 189 189 151 Highest-Rated Ally 19 | . . 19 19 19 Total Orders . | . . . . . Ally Attacks 88 | . . 32 17 39 Total Damage 1930 | . . 949 330 651 Kills 19 | . . 13 4 2 Allies Corrupted . | . . . . . Allies Melted 1 | . . 1 . . Intel | -11 -10 -10 -8 -6 ------- Run | Yrd Mat Sub Rec Fac Robot Analysis Total 4 | . 4 . . . Derelict Logs Recovered 2 | . . 2 . . Drone Launches . | . . . . . Drone Recoveries . | . . . . . Exploration | -11 -10 -10 -8 -6 ------------- Run | Yrd Mat Sub Rec Fac Turns Passed 7049 | 40 1493 3223 1191 1102 Spaces Moved 4537 | 19 804 2321 849 544 Core 1 | . . . . 1 Treads 29 | . . . . 29 Legs 3203 | 1 . 1865 849 488 Wheels 1288 | 18 804 456 . 10 Hover . | . . . . . Flight 16 | . . . . 16 Fastest Speed 37 | 100 100 115 130 37 Average Speed 134 | 101 162 128 130 125 Slowest Speed 250 | 120 175 130 130 250 Overloaded Moves . | . . . . . Propulsion Burnouts . | . . . . . Robots Hopped . | . . . . . Cave-ins Triggered . | . . . . . Exploration Rate (%) 61 | 3 99 96 99 8 Regions Visited 4 Branch Regions 2 Pre-discovered Areas 1 | . . 1 . . Known Exits Taken 1 | . . 1 . . Unknown Exits Taken 3 | 1 1 . 1 . Scrap Searched 17 | . . 17 . . Spaces Dug . | . . . . . Terrain Destroyed 7 | . . 2 . 5 Melee . | . . . . . Projectile 2 | . . 2 . . AOE 5 | . . . . 5 Terrain Rammed . | . . . . . Walls Destroyed . | . . . . . Machines Disabled . | . . . . . Actions | -11 -10 -10 -8 -6 --------- Run | Yrd Mat Sub Rec Fac Total 5228 | 30 945 2486 919 848 Wait 269 | 5 58 49 42 115 Move 4533 | 18 803 2320 848 544 Hop . | . . . . . Pick Up 65 | . 22 18 5 20 Fast Attach 26 | 1 5 1 . 19 Attach 21 | . 1 3 . 17 Detach 12 | . 3 . . 9 Swap 40 | 2 9 13 4 12 Drop 67 | . 16 21 6 24 Fire 77 | 4 28 32 . 13 Melee 103 | . . 19 13 71 Ram . | . . . . . Kick . | . . . . . Crush . | . . . . . Escape Stasis . | . . . . . Rewire 2 | . . 2 . . Trap . | . . . . . Miscellaneous 13 | . . 8 1 4 Route ------- -11/Scrapyard -10/Materials (discovered 6 exits: [*Mat x3] / [*Min x2] / *Sub) -10/Subcaves (discovered 3 exits: [*Mat x2] / *Rec) -8/Recycling -6/Factory History --------- Turn | Location | Event 1 | -11/Scrapyard | Discovered new exit (range 3) 41 | -11/Scrapyard | Entered Materials 222 | -10/Materials | Discovered new exit (range 13) 306 | -10/Materials | Build established: Mutant 390 | -10/Materials | Central database locked down 390 | -10/Materials | Discovered new exit (range 15) 973 | -10/Materials | Discovered new exit (range 8) 1086 | -10/Materials | Discovered new exit (range 6) 1334 | -10/Materials | Discovered new exit (range 16) 1525 | -10/Materials | Discovered new exit (range 6) 1534 | -10/Materials | Entered Subcaves 1570 | -10/Subcaves | Visited triangular shrine 1578 | -10/Subcaves | Found Prototype Device 1579 | -10/Subcaves | Identified V3-11A's Pendant 1584 | -10/Subcaves | Befriended Subdweller 1647 | -10/Subcaves | Identified exit to Recycling 1972 | -10/Subcaves | Shifting Twisted Machinery released Sub. Machine Gun 1975 | -10/Subcaves | Shifting Twisted Machinery released Battle Cannon 2054 | -10/Subcaves | Befriended Subdweller 2054 | -10/Subcaves | Befriended Subdweller 2135 | -10/Subcaves | Visited 4L-MR0's lab 2156 | -10/Subcaves | Found Cargo Legs 2159 | -10/Subcaves | Attached Cargo Legs, gained temporary slots: Utility x2 2344 | -10/Subcaves | Befriended Subdweller 2404 | -10/Subcaves | Befriended Subdweller 2404 | -10/Subcaves | Befriended Subdweller 2453 | -10/Subcaves | Shifting Twisted Machinery released Multitool 2455 | -10/Subcaves | Shifting Twisted Machinery released Barrage Gun 2534 | -10/Subcaves | Befriended Subdweller 2534 | -10/Subcaves | Befriended Subdweller 2692 | -10/Subcaves | Visited Clippyterm 2714 | -10/Subcaves | Befriended Subdweller 2724 | -10/Subcaves | Befriended Subdweller 2754 | -10/Subcaves | Lost 3 allies 3359 | -10/Subcaves | Shifting Twisted Machinery released Sub. Beam Cannon 3385 | -10/Subcaves | Shifting Twisted Machinery released Barrage Gun 3552 | -10/Subcaves | Disturbed a concealed Subdweller 3554 | -10/Subcaves | Befriended Subdweller 3640 | -10/Subcaves | Discovered new exit (range 15) 3996 | -10/Subcaves | Learned location of Storage (-8) 4033 | -10/Subcaves | A swath of the cavern ceiling suddenly collapsed 4063 | -10/Subcaves | Lost 3 allies 4146 | -10/Subcaves | Discovered new exit (range 10) 4158 | -10/Subcaves | A Subdweller sparked back to life 4158 | -10/Subcaves | A Subdweller sparked back to life 4158 | -10/Subcaves | A Subdweller sparked back to life 4159 | -10/Subcaves | Befriended Subdweller 4159 | -10/Subcaves | Befriended Subdweller 4159 | -10/Subcaves | Befriended Subdweller 4269 | -10/Subcaves | Befriended Subdweller 4269 | -10/Subcaves | Befriended Subdweller 4320 | -10/Subcaves | Ambushed by Subdwellers from Twisted Machinery 4324 | -10/Subcaves | Befriended Subdweller 4757 | -10/Subcaves | Entered Recycling 4757 | -8/Recycling | Accompanied by 10 allies 5384 | -8/Recycling | Discovered new exit (range 14) 5825 | -8/Recycling | Found Scrap Engine 5948 | -8/Recycling | Entered Factory 5948 | -6/Factory | Accompanied by 8 allies 5948 | -6/Factory | Evolved 8 slots: Propulsion x3, Utility x5 6001 | -6/Factory | Garrison activated, responded to threat 6022 | -6/Factory | Lost 3 allies 6069 | -6/Factory | Lost 4 allies 6370 | -6/Factory | Build established: Scavenger-Assassin 6733 | -6/Factory | Lost 3 parts (2u1w) 6939 | -6/Factory | Build established: Mutant 6951 | -6/Factory | Lost 6 parts (1p3n2w) 6962 | -6/Factory | Cargo convoy interrupted 7004 | -6/Factory | Core integrity fell below 50% 7007 | -6/Factory | System corruption reached 10% 7038 | -6/Factory | Core integrity fell below 20% 7050 | -6/Factory | Destroyed by G-50 Soldier with Heavy Laser Last Messages --------------- 07040_ Acquired Unknown Ballistic Gun. 07040_ Identified Gauss Rifle. 07041_ Critical hit (Burn: +37). 07041_ M-28 Smith fits Backup Power III on P-60 Hacker. 07041_ System corrupted: Gauss Rifle jammed. 07042_ Lgt. Fission Core destroyed. 07042_ Biomechanical Wings destroyed. 07043_ Critical hit (Burn: +37). 07043_ M-28 Smith fits Backup Propulsion III on P-60 Hacker. 07044_ Critical hit (Burn: +37). 07045_ CTG GL OFTUPGWQ&MOSQ<90TA1JVLDTB|UNK 07045_ M-28 Smith fits Backup Plating III on P-60 Hacker. 07045_ Gauss Rifle destroyed. 07045_ Acquired 11 matter. 07046_ P-60 Hacker heat damages Backup Power III, Gravmag System. 07046_ Critical hit (Burn: +37). 07046_ P-60 Hacker resets P-60 Hacker, system corruption cleaned. 07047_ Flexi-carbon Leg destroyed. 07047_ M-28 Smith fits Backup Propulsion III on P-60 Hacker. 07048_ Acquired Imp. Deuterium Engine. Map ----- +----------------------------------------------------+ | ?????????????????????????????????????????# """""" | | ?????????????????????????????????????????# """""" | | ?????????????????????????????????????????# """""" | | ?????????????????????????????????????????# """""" | | ?????????????????????????????????????????# | | ?????????????????????????????????????????# | | ?????????????????????????????????????????######### | | ?????????????????????????????????????????????????? | | ?????????????????????????????????????????????????? | | ?????????????????????##############??????????????? | | ?????????????????????# #??????????????? | | ?????????????????????# #??????????????? | | ????#+###+############ #??????????????? | | ????# # #??????????????? | | ????# # #??????????????? | | ????# # #??????######### | | ????+ # = #??????# | | ????# |!=%! #??????# | | ????# "[=![ ! #??????# | | ????# "]%%% % #??????# | | ????########## # =**% % #??????# | | ?????????????# u #[%|!%== #??????# | | ?????????????# ####g#######+###????# ! | | ?????????????# p =g #?# #????# | | ?????????????#u m x pg ### T" ######= | | | ?????????????#u p %@ g "" %% %/% *%!% | | ???????? R ^ ### ######| ]=% | | ??????? k % #?# ! #????# ]!! | | ???????" """ """ #####+#?#######????######### | | ???????? """ """ t # ?????????????????????? | | ??????????"" """ # ! ?????????????????????? | | ?????????? ? "" # ????????????????????? | | ???????????? T" # ????????????????????? | | ??????????? "" # ""?????????????????????? | | ??????????? # ???????????????????????? | | ??????????? ? +??????????????????????????? | | ???????????? #??????????????????????????? | | ???????????????? ?? ???????????????????????????? | | ?????????????????? ???????????????????????????? | | ???????????????????? ????????????????????????????? | | ?????????????????????????????????????????????????? | | ?????????????????????????????????????????????????? | | ?????????????????????????????????????????????????? | | ?????????????????????????????????????????????????? | | ?????????????????????????????????????????????????? | | ?????????????????????????????????????????????????? | | ?????????????????????????????????????????????????? | | ?????????????????????????????????????????????????? | | ?????????????????????????????????????????????????? | | ?????????????????????????????????????????????????? | +----------------------------------------------------+ Best States ------------- Heat Dissipation 37 Energy Generation 18 Energy Capacity 290 Matter Stores 300 Matter Capacity 300 Sight Range 21 Robot Scan Range 15 Terrain Scan Density 10 Armor Coverage 950 Resistance: EM 15 Evasion (%) 62 Melee Accuracy 8 Recoil Reduction 7 Defensive Hacking 10 Item Schematics ----------------- None Robot Schematics ------------------ None Fabricated ------------ Nothing Alien Tech Used ----------------- None Achievements -------------- None Challenges ------------ None Game ------ Seed CloakingEncryptedSpear Manual? 0 Play Time 01:30:45 Cumulative 51.8 hours Start 2024.03.07 @ 14:03:59 End 2024.03.08 @ 02:48:47 Sessions 3 Manual Loads 0 Difficulty Rogue Special Mode None Game No. 28 Rogue 28 Adventurer 0 Explorer 0 Win Type - Total 1 Types 1/0/0/0/0/0/0/0/0 Lore% 30 Gallery% 47 Achievement% 36 Wizard Run 0 Options --------- Layout 0 ASCII 0 Keyboard 0 Movement Numpad Keybinds 0 Fullscreen 2 Font 18/SmallcapsGlow Map View 76x50 Zoom Use 0% Tactical HUD 1 Map Filters NONE Filters NONE Steam 1 RUN: 7434866e-fddd-4467-8edf-29d311aeefb1